fUSD/lending_fUSD_20240508
["ID","MTS","AMOUNT","RATE_DAILY","PERIOD"]
[326618605,1715149872895,-548.41781594,0.00020821,2]
[326618606,1715149872904,-500.0,0.00020821,2]
[326618607,1715149872914,-500.0,0.00020821,2]
[326618608,1715149872923,-240.99145282,0.00020821,2]
[326618609,1715149872933,-500.0,0.00020821,2]
[326618610,1715149872942,-3534.18,0.00020821,2]
[326618611,1715149872953,-982.56,0.00020821,2]
[326618612,1715149872963,-500.0,0.00020821,2]
[326618613,1715149872973,-500.0,0.00020821,2]
[326618614,1715149872982,-582.52,0.00020821,2]
[326618615,1715149872991,-500.0,0.00020821,2]
[326618616,1715149873000,-500.0,0.00020821,2]
[326618617,1715149873011,-500.0,0.00020821,2]
[326618618,1715149873020,-500.0,0.00020821,2]
[326618619,1715149873029,-500.0,0.00020821,2]
[326618620,1715149873038,-500.0,0.00020821,2]
[326618621,1715149873048,-275.91514712,0.00020821,2]
[326618622,1715149873058,-500.0,0.00020821,2]
[326618623,1715149873068,-500.0,0.00020821,2]
[326618624,1715149873078,-522.57630467,0.00020821,2]
[326618625,1715149873088,-500.0,0.00020821,2]
[326618626,1715149873098,-500.0,0.00020821,2]
[326618627,1715149873107,-500.0,0.00020821,2]
[326618628,1715149873117,-500.0,0.00020821,2]
[326618629,1715149873127,-550.25996502,0.00020821,2]
[326618630,1715149873140,-500.0,0.00020821,2]
[326618631,1715149873150,-500.0,0.00020821,2]
[326618632,1715149873159,-267.39241735,0.00020821,2]
[326618633,1715149873169,-500.0,0.00020821,2]
[326618634,1715149873178,-500.0,0.00020821,2]
[326618635,1715149873188,-500.0,0.00020821,2]
[326618636,1715149873197,-913.04,0.00020821,2]
[326618637,1715149873207,-500.0,0.00020821,2]
[326618638,1715149873217,-500.0,0.00020821,2]
[326618639,1715149873230,-647.89,0.00020821,2]
[326618640,1715149873240,-500.0,0.00020821,2]
[326618641,1715149873250,-500.0,0.00020821,2]
[326618642,1715149873261,-562.81,0.00020821,2]
[326618643,1715149873270,-15777.08,0.00020821,2]
[326618644,1715149873280,-564.63226146,0.00020821,2]
[326618645,1715149873290,-500.0,0.00020821,2]
[326618646,1715149873300,-512.6,0.00020821,2]
[326618647,1715149873311,-500.0,0.00020821,2]
[326618648,1715149873320,-500.0,0.00020821,2]
[326618649,1715149873329,-504.86,0.00020821,2]
[326618650,1715149873339,-500.0,0.00020821,2]
[326618651,1715149873348,-2690.64,0.00020821,2]
[326618652,1715149873358,-500.0,0.00020821,2]
[326618653,1715149873367,-315.97736277,0.00020821,2]
[326618654,1715149873377,-500.0,0.00020821,2]
[326618655,1715149873392,-500.0,0.00020821,2]
[326618656,1715149873402,-500.0,0.00020821,2]
[326618657,1715149873411,-500.0,0.00020821,2]
[326618658,1715149873421,-1360.34,0.00020821,2]
[326618659,1715149873429,-500.0,0.00020821,2]
[326618660,1715149873438,-500.0,0.00020821,2]
[326618661,1715149873447,-500.0,0.00020821,2]
[326618662,1715149873457,-545.75,0.00020821,2]
[326618663,1715149873468,-500.0,0.00020821,2]
[326618664,1715149873477,-238.73842114,0.00020821,2]
[326618665,1715149873487,-500.0,0.00020821,2]
[326618666,1715149873497,-500.0,0.00020821,2]
[326618667,1715149873506,-500.0,0.00020821,2]
[326618668,1715149873516,-154.31506026,0.00020837,2]
[326618669,1715149873526,-254.06,0.000209,2]
[326618670,1715149873535,-301.73,0.000209,2]
[326618671,1715149873545,-153.8305885,0.00020944,2]
[326618672,1715149873555,-158.72050771,0.00020954,2]
[326618673,1715149873565,-719.144145,0.00021,2]
[326618674,1715149873574,-2000.0,0.00021,2]
[326618675,1715149873584,-188.13,0.00021,2]
[326618676,1715149873594,-150.0,0.00021,2]
[326618677,1715149873603,-506.55704384,0.00021095,2]
[326618678,1715149873613,-189.04468483,0.00021095,2]
[326618679,1715149873623,-416.67928353,0.00021095,2]
[326618680,1715149873636,-500.0,0.00021095,2]
[326618681,1715149873646,-500.0,0.00021095,2]
[326618682,1715149873655,-500.0,0.00021095,2]
[326618683,1715149873665,-478.74478816,0.00021095,2]
[326618684,1715149873674,-500.0,0.00021095,2]
[326618685,1715149873685,-586.79,0.00021095,2]
[326618686,1715149873695,-500.0,0.00021095,2]
[326618687,1715149873705,-159.31,0.00021095,2]
[326618688,1715149873716,-500.0,0.00021095,2]
[326618689,1715149873725,-150.0,0.00021095,2]
[326618690,1715149873735,-500.0,0.00021095,2]
[326618691,1715149873746,-1133.31,0.00021095,2]
[326618692,1715149873756,-500.0,0.00021095,2]
[326618693,1715149873766,-500.0,0.00021095,2]
[326618694,1715149873776,-500.0,0.00021095,2]
[326618695,1715149873786,-273.51077137,0.00021095,2]
[326618696,1715149873796,-500.0,0.00021095,2]
[326618697,1715149873806,-500.0,0.00021095,2]
[326618698,1715149873816,-500.0,0.00021095,2]
[326618699,1715149873828,-222.56606288,0.00021095,2]
[326618700,1715149873838,-500.0,0.00021095,2]
[326618701,1715149873848,-500.0,0.00021095,2]
[326618702,1715149873859,-3026.24,0.00021095,2]
[326618703,1715149873870,-407.2663625,0.00021095,2]
[326618704,1715149873884,-444.47649942,0.00021095,2]
[326618705,1715149873894,-500.0,0.00021095,2]
[326618706,1715149873903,-500.0,0.00021095,2]
[326618707,1715149873912,-517.03,0.00021095,2]
[326618708,1715149873921,-532.18,0.00021095,2]
[326618709,1715149873931,-500.0,0.00021095,2]
[326618710,1715149873941,-1991.71,0.00021095,2]
[326618711,1715149873951,-325.59140983,0.00021095,2]
[326618712,1715149873961,-1441.2,0.00021095,2]
[326618713,1715149873972,-475.03098728,0.00021095,2]
[326618714,1715149873981,-1488.67,0.00021095,2]
[326618715,1715149873992,-500.0,0.00021095,2]
[326618716,1715149874003,-500.0,0.00021095,2]
[326618717,1715149874013,-861.02,0.00021095,2]
[326618718,1715149874023,-500.0,0.00021095,2]
[326618719,1715149874034,-500.0,0.00021095,2]
[326618720,1715149874044,-500.0,0.00021095,2]
[326618721,1715149874054,-500.0,0.00021095,2]
[326618722,1715149874064,-500.0,0.00021095,2]
[326618723,1715149874074,-500.0,0.00021095,2]
[326618724,1715149874084,-3534.18,0.00021095,2]
[326618725,1715149874094,-982.56,0.00021095,2]
[326618726,1715149874104,-500.0,0.00021095,2]
[326618727,1715149874113,-500.0,0.00021095,2]
[326618728,1715149874124,-582.52,0.00021095,2]
[326618729,1715149874136,-500.0,0.00021095,2]
[326618730,1715149874146,-500.0,0.00021095,2]
[326618731,1715149874156,-500.0,0.00021095,2]
[326618732,1715149874165,-500.0,0.00021095,2]
[326618733,1715149874175,-500.0,0.00021095,2]
[326618734,1715149874184,-500.0,0.00021095,2]
[326618735,1715149874194,-483.67524412,0.00021095,2]
[326618736,1715149874204,-500.0,0.00021095,2]
[326618737,1715149874214,-500.0,0.00021095,2]
[326618738,1715149874226,-500.0,0.00021095,2]
[326618739,1715149874235,-500.0,0.00021095,2]
[326618740,1715149874245,-500.0,0.00021095,2]
[326618741,1715149874255,-500.0,0.00021095,2]
[326618742,1715149874265,-500.0,0.00021095,2]
[326618743,1715149874274,-500.0,0.00021095,2]
[326618744,1715149874284,-500.0,0.00021095,2]
[326618745,1715149874294,-500.0,0.00021095,2]
[326618746,1715149874305,-913.04,0.00021095,2]
[326618747,1715149874315,-500.0,0.00021095,2]
[326618748,1715149874325,-500.0,0.00021095,2]
[326618749,1715149874335,-647.89,0.00021095,2]
[326618750,1715149874345,-336.79589703,0.00021095,2]
[326618751,1715149874355,-500.0,0.00021095,2]
[326618752,1715149874364,-562.81,0.00021095,2]
[326618753,1715149874373,-15777.08,0.00021095,2]
[326618754,1715149874386,-382.01075314,0.00021095,2]
[326618755,1715149874396,-512.6,0.00021095,2]
[326618756,1715149874406,-470.63619584,0.00021095,2]
[326618757,1715149874415,-500.0,0.00021095,2]
[326618758,1715149874424,-504.86,0.00021095,2]
[326618759,1715149874434,-500.0,0.00021095,2]
[326618760,1715149874443,-2690.64,0.00021095,2]
[326618761,1715149874453,-500.0,0.00021095,2]
[326618762,1715149874463,-500.0,0.00021095,2]
[326618763,1715149874472,-210.98258512,0.00021095,2]
[326618764,1715149874482,-500.0,0.00021095,2]
[326618765,1715149874493,-1360.34,0.00021095,2]
[326618766,1715149874503,-213.46,0.00021095,2]
[326618767,1715149874512,-500.0,0.00021095,2]
[326618768,1715149874522,-376.35360091,0.00021095,2]
[326618769,1715149874531,-500.0,0.00021095,2]
[326618770,1715149874542,-545.75,0.00021095,2]
[326618771,1715149874552,-500.0,0.00021095,2]
[326618772,1715149874562,-500.0,0.00021095,2]
[326618773,1715149874573,-500.0,0.00021095,2]
[326618774,1715149874582,-450.6226235,0.00021095,2]
[326618775,1715149874592,-158.72050771,0.00021132,2]
[326618776,1715149874602,-185.86,0.00021252,2]
[326618777,1715149874611,-150.0,0.00021252,2]
[326618778,1715149874621,-163.18,0.00021252,2]
[326618779,1715149874630,-150.0,0.00021252,2]
[326618780,1715149874643,-163.18,0.00021252,2]
[326618781,1715149874745,-150.0,0.00021252,2]
[326618782,1715149874755,-150.0,0.00021252,2]
[326618783,1715149874764,-163.18,0.00021252,2]
[326618784,1715149874773,-150.0,0.00021252,2]
[326618785,1715149874783,-150.0,0.00021252,2]
[326618786,1715149874792,-150.0,0.00021252,2]
[326618787,1715149874802,-163.18,0.00021252,2]
[326618788,1715149874811,-150.0,0.00021252,2]
[326618789,1715149874821,-163.18,0.00021252,2]
[326618790,1715149874830,-163.18,0.00021252,2]
[326618791,1715149874840,-163.18,0.00021252,2]
[326618792,1715149874850,-163.94,0.00021252,2]
[326618793,1715149874859,-166.62605941,0.0002126,2]
[326618794,1715149874869,-500.0,0.00021369,2]
[326618795,1715149874879,-500.0,0.00021369,2]
[326618796,1715149874892,-500.0,0.00021369,2]
[326618797,1715149874902,-490.61,0.00021369,2]
[326618798,1715149874912,-586.79,0.00021369,2]
[326618799,1715149874922,-500.0,0.00021369,2]
[326618800,1715149874931,-500.0,0.00021369,2]
[326618801,1715149874941,-150.0,0.00021369,2]
[326618802,1715149874951,-500.0,0.00021369,2]
[326618803,1715149874961,-1133.31,0.00021369,2]
[326618804,1715149874971,-500.0,0.00021369,2]
[326618805,1715149874981,-500.0,0.00021369,2]
[326618806,1715149874990,-500.0,0.00021369,2]
[326618807,1715149875001,-500.0,0.00021369,2]
[326618808,1715149875011,-500.0,0.00021369,2]
[326618809,1715149875021,-500.0,0.00021369,2]
[326618810,1715149875030,-500.0,0.00021369,2]
[326618811,1715149875040,-559.73262372,0.00021369,2]
[326618812,1715149875049,-3026.24,0.00021369,2]
[326618813,1715149875060,-500.0,0.00021369,2]
[326618814,1715149875069,-562.20294914,0.00021369,2]
[326618815,1715149875079,-517.03,0.00021369,2]
[326618816,1715149875088,-532.18,0.00021369,2]
[326618817,1715149875098,-500.0,0.00021369,2]
[326618818,1715149875107,-1991.71,0.00021369,2]
[326618819,1715149875117,-1441.2,0.00021369,2]
[326618820,1715149875127,-1488.67,0.00021369,2]
[326618821,1715149875141,-500.0,0.00021369,2]
[326618822,1715149875151,-500.0,0.00021369,2]
[326618823,1715149875160,-861.02,0.00021369,2]
[326618824,1715149875171,-500.0,0.00021369,2]
[326618825,1715149875180,-500.0,0.00021369,2]
[326618826,1715149875190,-194.46164473,0.00021369,2]
[326618827,1715149875199,-401.58401953,0.00021369,2]
[326618828,1715149875208,-500.0,0.00021369,2]
[326618829,1715149875219,-500.0,0.00021369,2]
[326618830,1715149875231,-3534.18,0.00021369,2]
[326618831,1715149875241,-982.56,0.00021369,2]
[326618832,1715149875251,-500.0,0.00021369,2]
[326618833,1715149875263,-500.0,0.00021369,2]
[326618834,1715149875272,-582.52,0.00021369,2]
[326618835,1715149875282,-500.0,0.00021369,2]
[326618836,1715149875292,-500.0,0.00021369,2]
[326618837,1715149875304,-500.0,0.00021369,2]
[326618838,1715149875314,-165.70938742,0.00021369,2]
[326618839,1715149875324,-500.0,0.00021369,2]
[326618840,1715149875334,-500.0,0.00021369,2]
[326618841,1715149875344,-229.61713185,0.00021369,2]
[326618842,1715149875353,-500.0,0.00021369,2]
[326618843,1715149875362,-500.0,0.00021369,2]
[326618844,1715149875372,-500.0,0.00021369,2]
[326618845,1715149875386,-500.0,0.00021369,2]
[326618846,1715149875396,-500.0,0.00021369,2]
[326618847,1715149875406,-500.0,0.00021369,2]
[326618848,1715149875415,-500.0,0.00021369,2]
[326618849,1715149875425,-500.0,0.00021369,2]
[326618850,1715149875435,-500.0,0.00021369,2]
[326618851,1715149875445,-913.04,0.00021369,2]
[326618852,1715149875454,-500.0,0.00021369,2]
[326618853,1715149875464,-558.11846375,0.00021369,2]
[326618854,1715149875474,-647.89,0.00021369,2]
[326618855,1715149875498,-500.0,0.00021369,2]
[326618856,1715149875507,-562.81,0.00021369,2]
[326618857,1715149875516,-15777.08,0.00021369,2]
[326618858,1715149875527,-512.6,0.00021369,2]
[326618859,1715149875536,-500.0,0.00021369,2]
[326618860,1715149875546,-504.86,0.00021369,2]
[326618861,1715149875556,-500.0,0.00021369,2]
[326618862,1715149875566,-2690.64,0.00021369,2]
[326618863,1715149875576,-500.0,0.00021369,2]
[326618864,1715149875586,-276.41238711,0.00021369,2]
[326618865,1715149875596,-500.0,0.00021369,2]
[326618866,1715149875606,-1360.34,0.00021369,2]
[326618867,1715149875615,-500.0,0.00021369,2]
[326618868,1715149875625,-500.0,0.00021369,2]
[326618869,1715149875636,-545.75,0.00021369,2]
[326618870,1715149875646,-479.76490842,0.00021369,2]
[326618871,1715149875656,-500.0,0.00021369,2]
[326618872,1715149875666,-500.0,0.00021369,2]
[326618873,1715149875676,-150.0,0.000215,3]
[326618874,1715149875687,-500.0,0.00021643,2]
[326618875,1715149875697,-500.0,0.00021643,2]
[326618876,1715149875706,-500.0,0.00021643,2]
[326618877,1715149875716,-586.79,0.00021643,2]
[326618878,1715149875727,-500.0,0.00021643,2]
[326618879,1715149875736,-501.71704663,0.00021643,2]
[326618880,1715149875745,-150.0,0.00021643,2]
[326618881,1715149875755,-500.0,0.00021643,2]
[326618882,1715149875765,-151.0,0.00021643,2]
[326618883,1715149875775,-1133.31,0.00021643,2]
[326618884,1715149875785,-577.13402172,0.00021643,2]
[326618885,1715149875795,-500.0,0.00021643,2]
[326618886,1715149875805,-500.0,0.00021643,2]
[326618887,1715149875814,-500.0,0.00021643,2]
[326618888,1715149875824,-500.0,0.00021643,2]
[326618889,1715149875834,-500.0,0.00021643,2]
[326618890,1715149875844,-500.0,0.00021643,2]
[326618891,1715149875853,-3026.24,0.00021643,2]
[326618892,1715149875863,-167.156329,0.00021643,2]
[326618893,1715149875874,-167.156329,0.00021643,2]
[326618894,1715149875884,-500.0,0.00021643,2]
[326618895,1715149875894,-151.0,0.00021643,2]
[326618896,1715149875905,-151.0,0.00021643,2]
[326618897,1715149875915,-517.03,0.00021643,2]
[326618898,1715149875924,-532.18,0.00021643,2]
[326618899,1715149875941,-500.0,0.00021643,2]
[326618900,1715149875950,-1991.71,0.00021643,2]
[326618901,1715149875961,-1441.2,0.00021643,2]
[326618902,1715149875971,-1488.67,0.00021643,2]
[326618903,1715149875980,-500.0,0.00021643,2]
[326618904,1715149875991,-316.5533011,0.00021643,2]
[326618905,1715149876001,-861.02,0.00021643,2]
[326618906,1715149876012,-500.0,0.00021643,2]
[326618907,1715149876022,-500.0,0.00021643,2]
[326618908,1715149876032,-500.0,0.00021643,2]
[326618909,1715149876044,-236.19493294,0.00021643,2]
[326618910,1715149876055,-3534.18,0.00021643,2]
[326618911,1715149876065,-982.56,0.00021643,2]
[326618912,1715149876075,-500.0,0.00021643,2]
[326618913,1715149876084,-582.52,0.00021643,2]
[326618914,1715149876094,-327.69011647,0.00021643,2]
[326618915,1715149876104,-500.0,0.00021643,2]
[326618916,1715149876114,-500.0,0.00021643,2]
[326618917,1715149876124,-500.0,0.00021643,2]
[326618918,1715149876136,-500.0,0.00021643,2]
[326618919,1715149876146,-500.0,0.00021643,2]
[326618920,1715149876155,-500.0,0.00021643,2]
[326618921,1715149876164,-500.0,0.00021643,2]
[326618922,1715149876174,-500.0,0.00021643,2]
[326618923,1715149876184,-500.0,0.00021643,2]
[326618924,1715149876194,-500.0,0.00021643,2]
[326618925,1715149876204,-500.0,0.00021643,2]
[326618926,1715149876214,-500.0,0.00021643,2]
[326618927,1715149876228,-500.0,0.00021643,2]
[326618928,1715149876238,-500.0,0.00021643,2]
[326618929,1715149876248,-913.04,0.00021643,2]
[326618930,1715149876258,-274.47765766,0.00021643,2]
[326618931,1715149876268,-647.89,0.00021643,2]
[326618932,1715149876278,-500.0,0.00021643,2]
[326618933,1715149876287,-562.81,0.00021643,2]
[326618934,1715149876299,-15777.08,0.00021643,2]
[326618935,1715149876308,-512.6,0.00021643,2]
[326618936,1715149876317,-500.0,0.00021643,2]
[326618937,1715149876328,-504.86,0.00021643,2]
[326618938,1715149876338,-500.0,0.00021643,2]
[326618939,1715149876347,-2690.64,0.00021643,2]
[326618940,1715149876357,-500.0,0.00021643,2]
[326618941,1715149876367,-453.80504099,0.00021643,2]
[326618942,1715149876376,-1360.34,0.00021643,2]
[326618943,1715149876390,-500.0,0.00021643,2]
[326618944,1715149876399,-500.0,0.00021643,2]
[326618945,1715149876408,-545.75,0.00021643,2]
[326618946,1715149876417,-500.0,0.00021643,2]
[326618947,1715149876426,-500.0,0.00021643,2]
[326618948,1715149876436,-154.31506026,0.00021659,2]
[326618949,1715149876446,-351.69189894,0.00021829,2]
[326618950,1715149876455,-6782.61968309,0.000219,2]
[326618951,1715149876464,-189.861551,0.00021917,2]
[326618952,1715149876474,-384.18067015,0.00021917,2]
[326618953,1715149876483,-151.0,0.00021917,2]
[326618954,1715149876494,-500.0,0.00021917,2]
[326618955,1715149876504,-500.0,0.00021917,2]
[326618956,1715149876513,-152.863585,0.00021917,2]
[326618957,1715149876523,-291.731569,0.00021917,2]
[326618958,1715149876533,-291.731569,0.00021917,2]
[326618959,1715149876542,-272.812766,0.00021917,2]
[326618960,1715149876552,-586.79,0.00021917,2]
[326618961,1715149876562,-500.0,0.00021917,2]
[326618962,1715149876571,-150.0,0.00021917,2]
[326618963,1715149876581,-500.0,0.00021917,2]
[326618964,1715149876590,-1133.31,0.00021917,2]
[326618965,1715149876599,-500.0,0.00021917,2]
[326618966,1715149876609,-500.0,0.00021917,2]
[326618967,1715149876618,-500.0,0.00021917,2]
[326618968,1715149876628,-305.45198878,0.00021917,2]
[326618969,1715149876643,-500.0,0.00021917,2]
[326618970,1715149876653,-500.0,0.00021917,2]
[326618971,1715149876662,-3026.24,0.00021917,2]
[326618972,1715149876672,-500.0,0.00021917,2]
[326618973,1715149876682,-255.69553,0.00021917,2]
[326618974,1715149876692,-517.03,0.00021917,2]
[326618975,1715149876702,-532.18,0.00021917,2]
[326618976,1715149876712,-500.0,0.00021917,2]
[326618977,1715149876721,-1991.71,0.00021917,2]
[326618978,1715149876731,-1441.2,0.00021917,2]
[326618979,1715149876740,-1488.67,0.00021917,2]
[326618980,1715149876750,-500.0,0.00021917,2]
[326618981,1715149876761,-861.02,0.00021917,2]
[326618982,1715149876772,-500.0,0.00021917,2]
[326618983,1715149876782,-404.51018465,0.00021917,2]
[326618984,1715149876791,-500.0,0.00021917,2]
[326618985,1715149876801,-3534.18,0.00021917,2]
[326618986,1715149876811,-488.33123046,0.00021917,2]
[326618987,1715149876821,-982.56,0.00021917,2]
[326618988,1715149876831,-582.52,0.00021917,2]
[326618989,1715149876841,-500.0,0.00021917,2]
[326618990,1715149876851,-500.0,0.00021917,2]
[326618991,1715149876861,-500.0,0.00021917,2]
[326618992,1715149876871,-500.0,0.00021917,2]
[326618993,1715149876881,-500.0,0.00021917,2]
[326618994,1715149876895,-500.0,0.00021917,2]
[326618995,1715149876904,-500.0,0.00021917,2]
[326618996,1715149876914,-500.0,0.00021917,2]
[326618997,1715149876924,-500.0,0.00021917,2]
[326618998,1715149876933,-500.0,0.00021917,2]
[326618999,1715149876944,-568.67177066,0.00021917,2]
[326619000,1715149876954,-467.04705479,0.00021917,2]
[326619001,1715149876964,-500.0,0.00021917,2]
[326619002,1715149876975,-500.0,0.00021917,2]
[326619003,1715149876985,-913.04,0.00021917,2]
[326619004,1715149876995,-647.89,0.00021917,2]
[326619005,1715149877005,-500.0,0.00021917,2]
[326619006,1715149877015,-562.81,0.00021917,2]
[326619007,1715149877025,-15777.08,0.00021917,2]
[326619008,1715149877035,-512.6,0.00021917,2]
[326619009,1715149877046,-500.0,0.00021917,2]
[326619010,1715149877056,-504.86,0.00021917,2]
[326619011,1715149877066,-500.0,0.00021917,2]
[326619012,1715149877076,-2690.64,0.00021917,2]
[326619013,1715149877086,-500.0,0.00021917,2]
[326619014,1715149877096,-1360.34,0.00021917,2]
[326619015,1715149877106,-500.0,0.00021917,2]
[326619016,1715149877116,-500.0,0.00021917,2]
[326619017,1715149877126,-545.75,0.00021917,2]
[326619018,1715149877139,-500.0,0.00021917,2]
[326619019,1715149877149,-204.50325804,0.00021917,2]
[326619020,1715149877159,-1309.43,0.00021918,3]
[326619021,1715149877169,-250.0,0.00021918,2]
[326619022,1715149877179,-250.0,0.00021918,2]
[326619023,1715149877189,-2000.0,0.00021918,2]
[326619024,1715149877198,-163.46349749,0.00021918,2]
[326619025,1715149877211,-155.347237,0.00021983,2]
[326619026,1715149877222,-546.4241888,0.00022,2]
[326619027,1715149877232,-169994.50158242,0.00022,2]
[326619028,1715149877242,-1568.80374452,0.00022,2]
[326619029,1715149877251,-5000.0,0.00022,2]
[326619030,1715149877261,-850.0,0.00022,3]
[326619031,1715149877271,-150.0,0.00022,3]
[326619032,1715149877281,-153.8305885,0.00022001,2]
[326619033,1715149877291,-500.0,0.00022191,2]
[326619034,1715149877302,-588.77402955,0.00022191,2]
[326619035,1715149877312,-586.79,0.00022191,2]
[326619036,1715149877323,-255.09593468,0.00022191,2]
[326619037,1715149877333,-260.79408126,0.00022191,2]
[326619038,1715149877343,-500.0,0.00022191,2]
[326619039,1715149877353,-186.676398,0.00022191,7]
[326619040,1715149877363,-1133.31,0.00022191,2]
[326619041,1715149877372,-500.0,0.00022191,2]
[326619042,1715149877382,-500.0,0.00022191,2]
[326619043,1715149877395,-500.0,0.00022191,2]
[326619044,1715149877405,-648.40348456,0.00022191,2]
[326619045,1715149877416,-500.0,0.00022191,2]
[326619046,1715149877426,-3026.24,0.00022191,2]
[326619047,1715149877435,-167.156329,0.00022191,7]
[326619048,1715149877446,-167.156329,0.00022191,7]
[326619049,1715149877456,-500.0,0.00022191,2]
[326619050,1715149877466,-151.0,0.00022191,7]
[326619051,1715149877477,-287.777484,0.00022191,7]
[326619052,1715149877487,-517.03,0.00022191,2]
[326619053,1715149877499,-532.18,0.00022191,2]
[326619054,1715149877510,-500.0,0.00022191,2]
[326619055,1715149877521,-1991.71,0.00022191,2]
[326619056,1715149877531,-1441.2,0.00022191,2]
[326619057,1715149877541,-1488.67,0.00022191,2]
[326619058,1715149877551,-500.0,0.00022191,2]
[326619059,1715149877561,-861.02,0.00022191,2]
[326619060,1715149877571,-520.16989554,0.00022191,2]
[326619061,1715149877581,-500.0,0.00022191,2]
[326619062,1715149877591,-3534.18,0.00022191,2]
[326619063,1715149877601,-982.56,0.00022191,2]
[326619064,1715149877611,-582.52,0.00022191,2]
[326619065,1715149877621,-463.55,0.00022191,2]
[326619066,1715149877631,-500.0,0.00022191,2]
[326619067,1715149877644,-590.6,0.00022191,2]
[326619068,1715149877654,-500.0,0.00022191,2]
[326619069,1715149877663,-500.0,0.00022191,2]
[326619070,1715149877672,-241.96851626,0.00022191,2]
[326619071,1715149877681,-645.52103839,0.00022191,2]
[326619072,1715149877691,-500.0,0.00022191,2]
[326619073,1715149877701,-500.0,0.00022191,2]
[326619074,1715149877821,-500.0,0.00022191,2]
[326619075,1715149877833,-500.0,0.00022191,2]
[326619076,1715149877843,-500.0,0.00022191,2]
[326619077,1715149877853,-913.04,0.00022191,2]
[326619078,1715149877863,-647.89,0.00022191,2]
[326619079,1715149877873,-500.0,0.00022191,2]
[326619080,1715149877885,-562.81,0.00022191,2]
[326619081,1715149877895,-15777.08,0.00022191,2]
[326619082,1715149877904,-512.6,0.00022191,2]
[326619083,1715149877914,-380.20536669,0.00022191,2]
[326619084,1715149877924,-504.86,0.00022191,2]
[326619085,1715149877934,-500.0,0.00022191,2]
[326619086,1715149877943,-2690.64,0.00022191,2]
[326619087,1715149877953,-568.86763366,0.00022191,2]
[326619088,1715149877962,-1360.34,0.00022191,2]
[326619089,1715149877972,-500.0,0.00022191,2]
[326619090,1715149877981,-500.0,0.00022191,2]
[326619091,1715149877991,-545.75,0.00022191,2]
[326619092,1715149878001,-500.0,0.00022191,2]
[326619093,1715149878012,-291.731569,0.00022234,7]
[326619094,1715149878022,-291.731569,0.00022234,7]
[326619095,1715149878032,-153.8305885,0.00022239,2]
[326619096,1715149878041,-151.0,0.00022465,7]
[326619097,1715149878052,-500.0,0.00022465,2]
[326619098,1715149878062,-586.79,0.00022465,2]
[326619099,1715149878072,-500.0,0.00022465,2]
[326619100,1715149878083,-1133.31,0.00022465,2]
[326619101,1715149878092,-500.0,0.00022465,2]
[326619102,1715149878103,-500.0,0.00022465,2]
[326619103,1715149878112,-500.0,0.00022465,2]
[326619104,1715149878122,-467.23692285,0.00022465,2]